[Event "Late-Titled-Tuesday-Blitz-June-18-2024"]
[Site "Chess.com"]
[Date "2024.06.18"]
[Round "7"]
[White "ALRS-SPS"]
[Black "pompey831"]
[Result "1/2-1/2"]
[WhiteElo "2423"]
[BlackElo "2517"]
[TimeControl "180+1"]
[EndTime "15:15:35 PDT"]
[Termination "Game drawn by repetition"]

1. e4 {[%clk 0:03:00.9]} 1... e6 {[%clk 0:02:57.9]} 2. d4 {[%clk 0:03:00.6]}
2... d5 {[%clk 0:02:57.9]} 3. Nc3 {[%clk 0:03:00.1]} 3... Nf6 {[%clk 0:02:54.9]}
4. Bg5 {[%clk 0:02:59.3]} 4... dxe4 {[%clk 0:02:54.2]} 5. Nxe4 {[%clk
0:02:59.4]} 5... Nbd7 {[%clk 0:02:54.4]} 6. Nxf6+ {[%clk 0:02:59.1]} 6... Nxf6
{[%clk 0:02:52.7]} 7. Nf3 {[%clk 0:02:59.1]} 7... h6 {[%clk 0:02:52.9]} 8. Bh4
{[%clk 0:02:58.3]} 8... c5 {[%clk 0:02:52.1]} 9. Bb5+ {[%clk 0:02:55.3]} 9...
Bd7 {[%clk 0:02:51.3]} 10. Bxd7+ {[%clk 0:02:55.4]} 10... Qxd7 {[%clk
0:02:51.4]} 11. Bxf6 {[%clk 0:02:54.6]} 11... gxf6 {[%clk 0:02:50.5]} 12. dxc5
{[%clk 0:02:51.6]} 12... Qxd1+ {[%clk 0:02:49.1]} 13. Rxd1 {[%clk 0:02:51.4]}
13... Bxc5 {[%clk 0:02:49.4]} 14. O-O {[%clk 0:02:51.4]} 14... Rd8 {[%clk
0:02:48.3]} 15. g3 {[%clk 0:02:45.5]} 15... Ke7 {[%clk 0:02:42.5]} 16. Kg2
{[%clk 0:02:45]} 16... Rd5 {[%clk 0:02:21.4]} 17. Rxd5 {[%clk 0:02:39.9]} 17...
exd5 {[%clk 0:02:20.9]} 18. Rd1 {[%clk 0:02:38]} 18... Ke6 {[%clk 0:02:19.5]}
19. Nd2 {[%clk 0:02:21.5]} 19... f5 {[%clk 0:02:13.7]} 20. Kf3 {[%clk
0:02:19.3]} 20... Rc8 {[%clk 0:02:11.1]} 21. Nb3 {[%clk 0:02:14]} 21... Bb6
{[%clk 0:02:10.1]} 22. c3 {[%clk 0:02:13.2]} 22... Rc4 {[%clk 0:02:09.1]} 23.
Re1+ {[%clk 0:02:12.6]} 23... Kf6 {[%clk 0:02:03.3]} 24. Nd2 {[%clk 0:01:55.9]}
24... Rc8 {[%clk 0:02:01.4]} 25. Nb3 {[%clk 0:01:48.5]} 25... Rc4 {[%clk
0:02:00.8]} 26. Nd2 {[%clk 0:01:48.4]} 26... Rc8 {[%clk 0:02:00.2]} 27. Nb3
{[%clk 0:01:48.7]} 27... Rc4 {[%clk 0:01:55.6]} 1/2-1/2

[Event "Late-Titled-Tuesday-Blitz-June-18-2024"]
[Site "Chess.com"]
[Date "2024.06.18"]
[Round "7"]
[White "JunjiCol"]
[Black "AlphaPerseii"]
[Result "1-0"]
[WhiteElo "2339"]
[BlackElo "2405"]
[TimeControl "180+1"]
[EndTime "15:15:45 PDT"]
[Termination "JunjiCol won by resignation"]

1. e4 {[%clk 0:03:00.9]} 1... e6 {[%clk 0:02:54.4]} 2. c4 {[%clk 0:02:59.6]}
2... c5 {[%clk 0:02:52.8]} 3. Nc3 {[%clk 0:02:58.9]} 3... Nc6 {[%clk 0:02:52.6]}
4. Nf3 {[%clk 0:02:58.1]} 4... g6 {[%clk 0:02:50.2]} 5. d4 {[%clk 0:02:54.4]}
5... cxd4 {[%clk 0:02:50.5]} 6. Nxd4 {[%clk 0:02:55]} 6... Bg7 {[%clk
0:02:51.2]} 7. Ndb5 {[%clk 0:02:54.5]} 7... Nge7 {[%clk 0:02:35.8]} 8. Bf4
{[%clk 0:02:52.6]} 8... e5 {[%clk 0:02:13.2]} 9. Nd6+ {[%clk 0:02:51.3]} 9...
Kf8 {[%clk 0:02:13.4]} 10. Be3 {[%clk 0:02:49.9]} 10... Qa5 {[%clk 0:01:45.6]}
11. a3 {[%clk 0:02:42]} 11... Nd4 {[%clk 0:01:39]} 12. b4 {[%clk 0:02:37.9]}
12... Qc7 {[%clk 0:01:38.5]} 13. Ncb5 {[%clk 0:02:34.4]} 13... Qc6 {[%clk
0:01:35.1]} 14. Nxd4 {[%clk 0:02:25.2]} 14... exd4 {[%clk 0:01:29.6]} 15. Bxd4
{[%clk 0:02:23.5]} 15... a5 {[%clk 0:01:18.7]} 16. b5 {[%clk 0:02:19.4]} 16...
Qc7 {[%clk 0:01:19.1]} 17. c5 {[%clk 0:02:10.2]} 17... Kg8 {[%clk 0:01:13.4]}
18. Bc4 {[%clk 0:02:05.4]} 1-0

[Event "Late-Titled-Tuesday-Blitz-June-18-2024"]
[Site "Chess.com"]
[Date "2024.06.18"]
[Round "7"]
[White "insatiable27"]
[Black "Barboval"]
[Result "0-1"]
[WhiteElo "2360"]
[BlackElo "2542"]
[TimeControl "180+1"]
[EndTime "15:16:09 PDT"]
[Termination "Barboval won by resignation"]

1. e4 {[%clk 0:03:00.9]} 1... Nf6 {[%clk 0:02:58.2]} 2. e5 {[%clk 0:03:00.6]}
2... Nd5 {[%clk 0:02:58.5]} 3. d4 {[%clk 0:03:01.4]} 3... d6 {[%clk 0:02:59]} 4.
Nf3 {[%clk 0:03:01.5]} 4... Bf5 {[%clk 0:02:58.8]} 5. Bd3 {[%clk 0:02:57.8]}
5... Bxd3 {[%clk 0:02:58.7]} 6. Qxd3 {[%clk 0:02:57.8]} 6... e6 {[%clk
0:02:59.4]} 7. O-O {[%clk 0:02:57.2]} 7... Nc6 {[%clk 0:02:59.1]} 8. c3 {[%clk
0:02:56.9]} 8... dxe5 {[%clk 0:02:59.1]} 9. dxe5 {[%clk 0:02:56.3]} 9... Nb6
{[%clk 0:02:57.9]} 10. Qe2 {[%clk 0:02:54.5]} 10... Qd5 {[%clk 0:02:53.6]} 11.
a4 {[%clk 0:02:50.1]} 11... Qc4 {[%clk 0:02:52.8]} 12. Qxc4 {[%clk 0:02:45.2]}
12... Nxc4 {[%clk 0:02:52.7]} 13. Bf4 {[%clk 0:02:45.8]} 13... Nxb2 {[%clk
0:02:50.4]} 14. Nbd2 {[%clk 0:02:35.6]} 14... Nd3 {[%clk 0:02:46.8]} 15. Bg3
{[%clk 0:02:36]} 15... h6 {[%clk 0:02:41.9]} 16. Rab1 {[%clk 0:02:34.9]} 16...
O-O-O {[%clk 0:02:41.4]} 17. Rfd1 {[%clk 0:02:32]} 17... g5 {[%clk 0:02:38.7]}
18. Ne4 {[%clk 0:02:29.6]} 18... Bg7 {[%clk 0:02:39.2]} 19. Rd2 {[%clk
0:02:20.5]} 19... Ndxe5 {[%clk 0:02:38.3]} 20. Nxe5 {[%clk 0:02:12]} 20... Bxe5
{[%clk 0:02:36.3]} 21. Bxe5 {[%clk 0:02:09.5]} 21... Nxe5 {[%clk 0:02:36.4]} 22.
Rdb2 {[%clk 0:02:10.1]} 22... b6 {[%clk 0:02:35.3]} 23. a5 {[%clk 0:02:10.5]}
23... Nc4 {[%clk 0:02:34.4]} 24. Rb4 {[%clk 0:02:08.3]} 24... Nxa5 {[%clk
0:02:34]} 25. c4 {[%clk 0:02:07.8]} 25... c5 {[%clk 0:02:31.4]} 26. Ra4 {[%clk
0:02:02.7]} 26... Rd4 {[%clk 0:02:24.5]} 27. Nxc5 {[%clk 0:02:02.1]} 27... Rxc4
{[%clk 0:02:24.8]} 28. Rxc4 {[%clk 0:01:58.7]} 28... Nxc4 {[%clk 0:02:25.7]} 29.
Ne4 {[%clk 0:01:56.4]} 29... Rd8 {[%clk 0:02:15.5]} 30. Rc1 {[%clk 0:01:55]}
30... Kb7 {[%clk 0:02:05.5]} 31. h4 {[%clk 0:01:50.3]} 31... b5 {[%clk
0:01:59.6]} 32. hxg5 {[%clk 0:01:46.6]} 32... hxg5 {[%clk 0:02:00.5]} 33. Nxg5
{[%clk 0:01:46]} 33... Rd7 {[%clk 0:02:00.1]} 34. Ne4 {[%clk 0:01:40.9]} 34...
Kb6 {[%clk 0:02:00.4]} 35. Rb1 {[%clk 0:01:38.8]} 35... a5 {[%clk 0:01:59.2]}
36. Nc3 {[%clk 0:01:37.1]} 36... b4 {[%clk 0:01:58.8]} 37. Na4+ {[%clk
0:01:37.6]} 37... Kb5 {[%clk 0:01:58.5]} 38. Nb2 {[%clk 0:01:37.4]} 38... Nxb2
{[%clk 0:01:58.1]} 39. Rxb2 {[%clk 0:01:38.3]} 0-1

[Event "Late-Titled-Tuesday-Blitz-June-18-2024"]
[Site "Chess.com"]
[Date "2024.06.18"]
[Round "7"]
[White "McCarthyStone"]
[Black "Bala-Afiada"]
[Result "1-0"]
[WhiteElo "2527"]
[BlackElo "2050"]
[TimeControl "180+1"]
[EndTime "15:16:16 PDT"]
[Termination "McCarthyStone won by checkmate"]

1. e4 {[%clk 0:03:00.3]} 1... c5 {[%clk 0:03:00.1]} 2. c3 {[%clk 0:02:55.7]}
2... Nf6 {[%clk 0:02:59.8]} 3. e5 {[%clk 0:02:50.9]} 3... Nd5 {[%clk 0:03:00]}
4. d4 {[%clk 0:02:48.9]} 4... cxd4 {[%clk 0:03:00.6]} 5. Nf3 {[%clk 0:02:41.7]}
5... d6 {[%clk 0:03:00.1]} 6. exd6 {[%clk 0:02:36.3]} 6... Qxd6 {[%clk
0:02:59.9]} 7. Nxd4 {[%clk 0:02:30.6]} 7... a6 {[%clk 0:02:36.2]} 8. Na3 {[%clk
0:02:29.1]} 8... Nc6 {[%clk 0:02:29.6]} 9. Be2 {[%clk 0:02:24.1]} 9... e5 {[%clk
0:02:26.2]} 10. Ndb5 {[%clk 0:02:14.7]} 10... axb5 {[%clk 0:02:00.2]} 11. Nxb5
{[%clk 0:02:15.6]} 11... Qd8 {[%clk 0:01:52.7]} 12. Qxd5 {[%clk 0:02:13.4]}
12... Qxd5 {[%clk 0:01:53.6]} 13. Nc7+ {[%clk 0:02:12.8]} 13... Kd8 {[%clk
0:01:44.3]} 14. Nxd5 {[%clk 0:02:13.7]} 14... Be6 {[%clk 0:01:36.8]} 15. Nb6
{[%clk 0:02:07.4]} 15... Rb8 {[%clk 0:01:04.3]} 16. Be3 {[%clk 0:02:05.7]} 16...
Kc7 {[%clk 0:00:59.8]} 17. O-O-O {[%clk 0:02:02.9]} 17... Be7 {[%clk 0:00:52.3]}
18. Bc4 {[%clk 0:01:59.6]} 18... Bxc4 {[%clk 0:00:49.9]} 19. Rd7# {[%clk
0:01:58.3]} 1-0

[Event "Late-Titled-Tuesday-Blitz-June-18-2024"]
[Site "Chess.com"]
[Date "2024.06.18"]
[Round "7"]
[White "BerlinDrawer"]
[Black "Losingexperience"]
[Result "0-1"]
[WhiteElo "2584"]
[BlackElo "2745"]
[TimeControl "180+1"]
[EndTime "15:16:22 PDT"]
[Termination "Losingexperience won by resignation"]

1. d4 {[%clk 0:03:00.9]} 1... Nf6 {[%clk 0:02:59.2]} 2. Nf3 {[%clk 0:03:01]}
2... g6 {[%clk 0:02:59.2]} 3. c4 {[%clk 0:03:00.4]} 3... Bg7 {[%clk 0:02:59.2]}
4. Nc3 {[%clk 0:03:00.7]} 4... O-O {[%clk 0:02:57.9]} 5. Bg5 {[%clk 0:03:00.6]}
5... d6 {[%clk 0:02:58.8]} 6. e3 {[%clk 0:03:00.7]} 6... c5 {[%clk 0:02:53.4]}
7. Be2 {[%clk 0:02:59.2]} 7... h6 {[%clk 0:02:52.7]} 8. Bh4 {[%clk 0:02:58.9]}
8... cxd4 {[%clk 0:02:52.9]} 9. exd4 {[%clk 0:02:58.7]} 9... d5 {[%clk 0:02:53]}
10. c5 {[%clk 0:02:57.9]} 10... Nc6 {[%clk 0:02:52.8]} 11. O-O {[%clk
0:02:57.8]} 11... Ne4 {[%clk 0:02:51.7]} 12. Bb5 {[%clk 0:02:50]} 12... Bg4
{[%clk 0:02:47.8]} 13. Bxc6 {[%clk 0:02:48.6]} 13... bxc6 {[%clk 0:02:45.3]} 14.
Re1 {[%clk 0:02:47.9]} 14... f5 {[%clk 0:02:23.2]} 15. h3 {[%clk 0:02:42.9]}
15... Bxf3 {[%clk 0:02:22.6]} 16. gxf3 {[%clk 0:02:37]} 16... Nxc3 {[%clk
0:02:17.7]} 17. bxc3 {[%clk 0:02:36.8]} 17... g5 {[%clk 0:02:18.2]} 18. Bg3
{[%clk 0:02:36.5]} 18... f4 {[%clk 0:02:15.5]} 19. Bh2 {[%clk 0:02:35.6]} 19...
Qd7 {[%clk 0:02:13.3]} 20. Qe2 {[%clk 0:02:32.4]} 20... Qxh3 {[%clk 0:02:07.7]}
21. Qe6+ {[%clk 0:02:29.9]} 21... Qxe6 {[%clk 0:02:06.7]} 22. Rxe6 {[%clk
0:02:30.8]} 22... Rac8 {[%clk 0:02:04.5]} 23. Rxe7 {[%clk 0:02:29.9]} 23... Rf7
{[%clk 0:02:04.5]} 24. Rxf7 {[%clk 0:02:27.9]} 24... Kxf7 {[%clk 0:02:04.2]} 25.
Rb1 {[%clk 0:02:28]} 25... Rc7 {[%clk 0:02:02.1]} 26. Kf1 {[%clk 0:02:28]} 26...
Bf6 {[%clk 0:01:51.5]} 27. Ke2 {[%clk 0:02:26.4]} 27... Ke6 {[%clk 0:01:51.8]}
28. Kd3 {[%clk 0:02:26.1]} 28... Kd7 {[%clk 0:01:50.7]} 29. Bg1 {[%clk
0:02:24.6]} 29... Kc8 {[%clk 0:01:48.8]} 30. a4 {[%clk 0:02:09.2]} 30... Rb7
{[%clk 0:01:48.8]} 31. Rb4 {[%clk 0:02:08.5]} 31... Rxb4 {[%clk 0:01:40.9]} 32.
cxb4 {[%clk 0:02:09.4]} 32... a6 {[%clk 0:01:40.6]} 33. Bh2 {[%clk 0:02:03.6]}
33... Kd7 {[%clk 0:01:37.7]} 34. Bg1 {[%clk 0:02:01.5]} 34... Bd8 {[%clk
0:01:34.4]} 35. Bh2 {[%clk 0:02:00.7]} 35... Ke6 {[%clk 0:01:31.6]} 0-1

[Event "Late-Titled-Tuesday-Blitz-June-18-2024"]
[Site "Chess.com"]
[Date "2024.06.18"]
[Round "7"]
[White "King_Deded4d5"]
[Black "secretworker2027"]
[Result "1-0"]
[WhiteElo "2516"]
[BlackElo "2665"]
[TimeControl "180+1"]
[EndTime "15:17:06 PDT"]
[Termination "King_Deded4d5 won by resignation"]

1. d4 {[%clk 0:03:00.9]} 1... Nf6 {[%clk 0:02:59.2]} 2. Nf3 {[%clk 0:03:01]}
2... d5 {[%clk 0:02:58.8]} 3. c3 {[%clk 0:03:00.2]} 3... Bf5 {[%clk 0:02:58.4]}
4. Qb3 {[%clk 0:02:59.1]} 4... Qc8 {[%clk 0:02:57.8]} 5. c4 {[%clk 0:02:59.5]}
5... e6 {[%clk 0:02:56.3]} 6. cxd5 {[%clk 0:02:59.8]} 6... exd5 {[%clk
0:02:56.1]} 7. Nc3 {[%clk 0:03:00.4]} 7... c6 {[%clk 0:02:56.1]} 8. Bf4 {[%clk
0:03:01]} 8... Nbd7 {[%clk 0:02:55.3]} 9. Rc1 {[%clk 0:03:01.5]} 9... Be7 {[%clk
0:02:43.8]} 10. h3 {[%clk 0:03:01.8]} 10... O-O {[%clk 0:02:42.5]} 11. e3 {[%clk
0:03:01.7]} 11... Ne4 {[%clk 0:02:39.4]} 12. Nxd5 {[%clk 0:03:00.2]} 12... cxd5
{[%clk 0:02:30.5]} 13. Rxc8 {[%clk 0:03:01.1]} 13... Raxc8 {[%clk 0:02:30.2]}
14. Be2 {[%clk 0:02:54]} 14... Rc1+ {[%clk 0:02:29.2]} 15. Bd1 {[%clk
0:02:54.3]} 15... g5 {[%clk 0:02:00.9]} 16. Bh2 {[%clk 0:02:47.2]} 16... Nec5
{[%clk 0:01:37.2]} 17. dxc5 {[%clk 0:02:46.5]} 17... Nxc5 {[%clk 0:01:38.1]} 18.
Qxd5 {[%clk 0:02:36.7]} 18... Rd8 {[%clk 0:01:31.8]} 19. Qxf5 {[%clk 0:01:32.4]}
19... Rcxd1+ {[%clk 0:01:22.4]} 20. Ke2 {[%clk 0:01:32.7]} 20... Rxh1 {[%clk
0:01:23.3]} 21. Nxg5 {[%clk 0:01:32.5]} 1-0

[Event "Late-Titled-Tuesday-Blitz-June-18-2024"]
[Site "Chess.com"]
[Date "2024.06.18"]
[Round "7"]
[White "JanistanTV"]
[Black "th3d4rkness"]
[Result "1-0"]
[WhiteElo "2752"]
[BlackElo "2226"]
[TimeControl "180+1"]
[EndTime "15:17:15 PDT"]
[Termination "JanistanTV won by resignation"]

1. e4 {[%clk 0:03:00.9]} 1... c5 {[%clk 0:02:58.9]} 2. Nf3 {[%clk 0:03:00.4]}
2... Nc6 {[%clk 0:02:59.3]} 3. Nc3 {[%clk 0:02:59.4]} 3... a6 {[%clk 0:02:58.2]}
4. g3 {[%clk 0:02:54.1]} 4... g6 {[%clk 0:02:56.1]} 5. d4 {[%clk 0:02:53.2]}
5... cxd4 {[%clk 0:02:55.1]} 6. Nxd4 {[%clk 0:02:54.1]} 6... Bg7 {[%clk
0:02:53.5]} 7. Be3 {[%clk 0:02:53.6]} 7... Nf6 {[%clk 0:02:51.5]} 8. Nxc6 {[%clk
0:02:49.8]} 8... bxc6 {[%clk 0:02:48.9]} 9. e5 {[%clk 0:02:48.7]} 9... Ng4
{[%clk 0:02:48.6]} 10. Qxg4 {[%clk 0:02:47.7]} 10... Bxe5 {[%clk 0:02:46.4]} 11.
Bd4 {[%clk 0:02:40.8]} 11... Qc7 {[%clk 0:02:40.7]} 12. Bxe5 {[%clk 0:02:39.1]}
12... Qxe5+ {[%clk 0:02:41]} 13. Qe4 {[%clk 0:02:39.2]} 13... Qa5 {[%clk
0:02:31]} 14. Bd3 {[%clk 0:02:26.8]} 14... d5 {[%clk 0:02:30.1]} 15. Qa4 {[%clk
0:02:24.9]} 15... Qc5 {[%clk 0:02:23.1]} 16. O-O {[%clk 0:02:21.1]} 16... O-O
{[%clk 0:02:22.9]} 17. Qa3 {[%clk 0:02:18.5]} 17... Qa7 {[%clk 0:02:20.5]} 18.
Na4 {[%clk 0:02:18.3]} 18... e5 {[%clk 0:02:16.1]} 19. Qc5 {[%clk 0:02:18]}
19... Qc7 {[%clk 0:02:12.3]} 20. Rfe1 {[%clk 0:02:13.2]} 20... e4 {[%clk
0:02:08.3]} 21. Bf1 {[%clk 0:02:12.9]} 21... Rb8 {[%clk 0:02:07]} 22. c4 {[%clk
0:02:10]} 22... Be6 {[%clk 0:02:02.7]} 23. cxd5 {[%clk 0:02:05.2]} 23... Bxd5
{[%clk 0:02:01.7]} 24. Nc3 {[%clk 0:02:03]} 24... Qe5 {[%clk 0:01:58.5]} 25.
Rxe4 {[%clk 0:01:57.4]} 25... Qh5 {[%clk 0:01:45.8]} 26. Nxd5 {[%clk 0:01:44.9]}
26... cxd5 {[%clk 0:01:45.2]} 27. Rb4 {[%clk 0:01:43.2]} 27... Rbc8 {[%clk
0:01:44.3]} 28. Qd4 {[%clk 0:01:39.2]} 28... Rfe8 {[%clk 0:01:36.6]} 29. Rb3
{[%clk 0:01:35.1]} 29... Re4 {[%clk 0:01:31.9]} 30. Qd1 {[%clk 0:01:34.2]} 30...
Qe5 {[%clk 0:01:26.3]} 31. Qd2 {[%clk 0:01:22.3]} 31... Re8 {[%clk 0:01:23.5]}
32. Rd3 {[%clk 0:01:20.4]} 32... d4 {[%clk 0:01:22]} 33. Rd1 {[%clk 0:01:19.7]}
33... h5 {[%clk 0:01:19.1]} 34. Rxd4 {[%clk 0:01:16.9]} 34... Rxd4 {[%clk
0:01:17.1]} 35. Qxd4 {[%clk 0:01:16.7]} 35... Qa5 {[%clk 0:01:15.3]} 36. a3
{[%clk 0:01:15.7]} 1-0

[Event "Late-Titled-Tuesday-Blitz-June-18-2024"]
[Site "Chess.com"]
[Date "2024.06.18"]
[Round "7"]
[White "schondeln"]
[Black "GMChessrob"]
[Result "0-1"]
[WhiteElo "2360"]
[BlackElo "2645"]
[TimeControl "180+1"]
[EndTime "15:17:15 PDT"]
[Termination "GMChessrob won by resignation"]

1. e4 {[%clk 0:03:00.9]} 1... e5 {[%clk 0:02:59.4]} 2. Nf3 {[%clk 0:03:00.4]}
2... Nc6 {[%clk 0:03:00]} 3. Nc3 {[%clk 0:03:00.2]} 3... Nf6 {[%clk 0:02:59.7]}
4. d4 {[%clk 0:03:00.3]} 4... exd4 {[%clk 0:03:00.2]} 5. Nxd4 {[%clk 0:03:01.1]}
5... Bb4 {[%clk 0:03:00.6]} 6. Nxc6 {[%clk 0:03:00.8]} 6... bxc6 {[%clk
0:03:00.8]} 7. Bd3 {[%clk 0:03:01.1]} 7... d5 {[%clk 0:03:00.9]} 8. exd5 {[%clk
0:03:02]} 8... cxd5 {[%clk 0:03:01.7]} 9. O-O {[%clk 0:03:02]} 9... O-O {[%clk
0:03:02.4]} 10. h3 {[%clk 0:03:02.2]} 10... c6 {[%clk 0:03:02.3]} 11. Qf3 {[%clk
0:03:01.8]} 11... Bd6 {[%clk 0:03:00.5]} 12. Bf4 {[%clk 0:03:00.5]} 12... Rb8
{[%clk 0:02:59.6]} 13. b3 {[%clk 0:03:00.4]} 13... Re8 {[%clk 0:02:51]} 14. Rfe1
{[%clk 0:02:59.6]} 14... Be6 {[%clk 0:02:50.6]} 15. Rad1 {[%clk 0:02:47.5]}
15... Bxf4 {[%clk 0:02:46.4]} 16. Qxf4 {[%clk 0:02:46]} 16... h6 {[%clk
0:02:47.3]} 17. Ne2 {[%clk 0:02:31.7]} 17... c5 {[%clk 0:02:45]} 18. Bf5 {[%clk
0:02:11.2]} 18... Bxf5 {[%clk 0:02:39.8]} 19. Qxf5 {[%clk 0:02:12.1]} 19... Qa5
{[%clk 0:02:36.1]} 20. a4 {[%clk 0:01:39.6]} 20... Re4 {[%clk 0:02:32.3]} 21. f3
{[%clk 0:01:32]} 21... Re3 {[%clk 0:02:23.1]} 22. Kf2 {[%clk 0:01:19.9]} 22...
Rbe8 {[%clk 0:02:22.9]} 23. c3 {[%clk 0:01:17.2]} 23... c4 {[%clk 0:01:56.8]}
24. bxc4 {[%clk 0:01:12.5]} 24... Qxa4 {[%clk 0:01:57.1]} 25. Qb1 {[%clk
0:00:12.6]} 25... Qxc4 {[%clk 0:01:54.4]} 26. Qc1 {[%clk 0:00:09.7]} 26... Rxe2+
{[%clk 0:01:54.2]} 0-1

[Event "Late-Titled-Tuesday-Blitz-June-18-2024"]
[Site "Chess.com"]
[Date "2024.06.18"]
[Round "7"]
[White "Jospem"]
[Black "AlexeiShirov"]
[Result "1/2-1/2"]
[WhiteElo "3055"]
[BlackElo "2865"]
[TimeControl "180+1"]
[EndTime "15:17:17 PDT"]
[Termination "Game drawn by repetition"]

1. e4 {[%clk 0:03:00.9]} 1... e5 {[%clk 0:02:59.9]} 2. Nf3 {[%clk 0:03:01.1]}
2... Nc6 {[%clk 0:02:58.7]} 3. Nc3 {[%clk 0:03:02]} 3... Nf6 {[%clk 0:02:57.5]}
4. g3 {[%clk 0:03:02.5]} 4... d5 {[%clk 0:02:55.5]} 5. exd5 {[%clk 0:03:03.4]}
5... Nxd5 {[%clk 0:02:55.2]} 6. Bg2 {[%clk 0:03:03.9]} 6... Nxc3 {[%clk
0:02:53.7]} 7. bxc3 {[%clk 0:03:04.8]} 7... Bd6 {[%clk 0:02:49.8]} 8. O-O {[%clk
0:03:04.8]} 8... O-O {[%clk 0:02:49.2]} 9. d4 {[%clk 0:03:04.7]} 9... Bg4 {[%clk
0:02:46.2]} 10. Qd3 {[%clk 0:02:52.4]} 10... Qf6 {[%clk 0:02:42.6]} 11. Ng5
{[%clk 0:02:43.8]} 11... Qg6 {[%clk 0:02:38.5]} 12. Qxg6 {[%clk 0:02:10.2]}
12... hxg6 {[%clk 0:02:37.4]} 13. Be3 {[%clk 0:02:07.9]} 13... Na5 {[%clk
0:02:22.4]} 14. Rab1 {[%clk 0:02:06]} 14... Rab8 {[%clk 0:02:13.5]} 15. dxe5
{[%clk 0:02:05.8]} 15... Bxe5 {[%clk 0:02:13]} 16. Bxa7 {[%clk 0:02:06.1]} 16...
Ra8 {[%clk 0:02:09.5]} 17. Bd4 {[%clk 0:02:05.9]} 17... Bd6 {[%clk 0:01:58.5]}
18. Ne4 {[%clk 0:01:59.4]} 18... Nc4 {[%clk 0:01:51.9]} 19. Nxd6 {[%clk
0:01:54.1]} 19... Nxd6 {[%clk 0:01:48.8]} 20. Rb2 {[%clk 0:01:43.8]} 20... Ra5
{[%clk 0:01:46]} 21. Re1 {[%clk 0:01:32.4]} 21... Be6 {[%clk 0:01:43.1]} 22. h4
{[%clk 0:01:23.6]} 22... b6 {[%clk 0:01:41]} 23. Bc6 {[%clk 0:00:57.1]} 23...
Nc4 {[%clk 0:01:29.5]} 24. Rb4 {[%clk 0:00:57.2]} 24... Na3 {[%clk 0:01:26.1]}
25. Rb2 {[%clk 0:00:51]} 25... Nc4 {[%clk 0:01:25.3]} 26. Rb4 {[%clk 0:00:51.4]}
26... Na3 {[%clk 0:01:25.2]} 27. Rb2 {[%clk 0:00:41.7]} 27... Nc4 {[%clk
0:01:25]} 1/2-1/2

[Event "Late-Titled-Tuesday-Blitz-June-18-2024"]
[Site "Chess.com"]
[Date "2024.06.18"]
[Round "7"]
[White "edgarhay012"]
[Black "harshu27"]
[Result "1-0"]
[WhiteElo "2718"]
[BlackElo "2556"]
[TimeControl "180+1"]
[EndTime "15:17:26 PDT"]
[Termination "edgarhay012 won by resignation"]

1. e4 {[%clk 0:03:00.9]} 1... c5 {[%clk 0:02:59.1]} 2. Nc3 {[%clk 0:02:59.4]}
2... d6 {[%clk 0:02:57.8]} 3. d4 {[%clk 0:02:58.7]} 3... cxd4 {[%clk 0:02:54.4]}
4. Qxd4 {[%clk 0:02:59.4]} 4... Nc6 {[%clk 0:02:52.2]} 5. Qd2 {[%clk 0:02:59]}
5... g6 {[%clk 0:02:50]} 6. b3 {[%clk 0:02:58.8]} 6... Bg7 {[%clk 0:02:50.4]} 7.
Bb2 {[%clk 0:02:58.7]} 7... Nf6 {[%clk 0:02:49.5]} 8. O-O-O {[%clk 0:02:58.4]}
8... a6 {[%clk 0:02:47.7]} 9. f3 {[%clk 0:02:57.8]} 9... b5 {[%clk 0:02:47]} 10.
g4 {[%clk 0:02:57]} 10... Bb7 {[%clk 0:02:36.3]} 11. Kb1 {[%clk 0:02:56.1]}
11... O-O {[%clk 0:02:30.8]} 12. h4 {[%clk 0:02:55.4]} 12... h5 {[%clk
0:02:26.7]} 13. gxh5 {[%clk 0:02:54.8]} 13... Nxh5 {[%clk 0:02:25.5]} 14. Nge2
{[%clk 0:02:54.4]} 14... b4 {[%clk 0:02:17.9]} 15. Nd5 {[%clk 0:02:53.6]} 15...
Bxb2 {[%clk 0:02:17.5]} 16. Kxb2 {[%clk 0:02:54.5]} 16... e6 {[%clk 0:02:16.3]}
17. Nxb4 {[%clk 0:02:44.7]} 17... Qf6+ {[%clk 0:02:03.2]} 18. Kb1 {[%clk
0:02:44.2]} 18... a5 {[%clk 0:02:01]} 19. Nxc6 {[%clk 0:02:41.8]} 19... Bxc6
{[%clk 0:02:01.9]} 20. Nd4 {[%clk 0:02:42.3]} 20... Bd7 {[%clk 0:01:43.5]} 21.
Qg5 {[%clk 0:02:40.7]} 21... Kg7 {[%clk 0:01:18]} 22. Rg1 {[%clk 0:02:35.3]}
22... a4 {[%clk 0:01:16.2]} 23. Qxh5 {[%clk 0:02:29]} 23... axb3 {[%clk
0:01:04.3]} 24. cxb3 {[%clk 0:02:27.7]} 24... Qf4 {[%clk 0:00:32.4]} 25. Qg5
{[%clk 0:02:20.6]} 25... Qh2 {[%clk 0:00:25.5]} 26. Rg2 {[%clk 0:02:18.5]} 26...
Qh3 {[%clk 0:00:14.5]} 27. Qd2 {[%clk 0:02:09.1]} 27... e5 {[%clk 0:00:09.2]}
28. Rxg6+ {[%clk 0:02:07.6]} 28... fxg6 {[%clk 0:00:04.4]} 29. Bxh3 {[%clk
0:02:07.3]} 29... Bxh3 {[%clk 0:00:04.2]} 30. Nc2 {[%clk 0:02:06.8]} 1-0

[Event "Late-Titled-Tuesday-Blitz-June-18-2024"]
[Site "Chess.com"]
[Date "2024.06.18"]
[Round "7"]
[White "ATM622"]
[Black "gabduschew"]
[Result "1-0"]
[WhiteElo "2546"]
[BlackElo "2366"]
[TimeControl "180+1"]
[EndTime "15:17:31 PDT"]
[Termination "ATM622 won by resignation"]

1. d4 {[%clk 0:03:00.9]} 1... Nf6 {[%clk 0:02:59.1]} 2. c4 {[%clk 0:03:00.9]}
2... e5 {[%clk 0:02:57.8]} 3. dxe5 {[%clk 0:03:00.7]} 3... Ng4 {[%clk
0:02:55.9]} 4. Nf3 {[%clk 0:03:00.9]} 4... Nc6 {[%clk 0:02:53.3]} 5. e4 {[%clk
0:02:55.3]} 5... Bc5 {[%clk 0:02:42.7]} 6. Be3 {[%clk 0:02:54.7]} 6... Nxe3
{[%clk 0:02:39.5]} 7. fxe3 {[%clk 0:02:54.6]} 7... Bxe3 {[%clk 0:02:39]} 8. Nc3
{[%clk 0:02:52.7]} 8... O-O {[%clk 0:02:35.2]} 9. Nd5 {[%clk 0:02:48.2]} 9...
Bh6 {[%clk 0:02:33.6]} 10. Be2 {[%clk 0:02:46.3]} 10... d6 {[%clk 0:02:33.6]}
11. exd6 {[%clk 0:02:45.8]} 11... Qxd6 {[%clk 0:02:32.7]} 12. O-O {[%clk
0:02:43.8]} 12... Kh8 {[%clk 0:02:23.5]} 13. Kh1 {[%clk 0:02:43.1]} 13... Be6
{[%clk 0:02:20.3]} 14. Rb1 {[%clk 0:02:38.8]} 14... Rad8 {[%clk 0:02:17.2]} 15.
Qa4 {[%clk 0:02:36.6]} 15... f5 {[%clk 0:02:13.3]} 16. exf5 {[%clk 0:02:34.6]}
16... Bxf5 {[%clk 0:02:14.2]} 17. Rbd1 {[%clk 0:02:33.6]} 17... Bg6 {[%clk
0:01:45.5]} 18. b4 {[%clk 0:02:26.4]} 18... a6 {[%clk 0:01:41.4]} 19. c5 {[%clk
0:02:23]} 19... Qe6 {[%clk 0:01:36.2]} 20. Bc4 {[%clk 0:02:13.6]} 20... Be4
{[%clk 0:01:30.4]} 21. Ne3 {[%clk 0:02:09]} 21... Qg6 {[%clk 0:01:25.5]} 22.
Rxd8 {[%clk 0:01:44.4]} 22... Rxd8 {[%clk 0:01:26.4]} 23. Qa3 {[%clk 0:01:32.1]}
23... Bd3 {[%clk 0:01:23.9]} 24. Bxd3 {[%clk 0:01:16.8]} 24... Rxd3 {[%clk
0:01:04.2]} 25. Ne5 {[%clk 0:01:16.9]} 25... Qe8 {[%clk 0:00:51.2]} 26. Nf7+
{[%clk 0:01:09.7]} 26... Kg8 {[%clk 0:00:50.8]} 27. Nxh6+ {[%clk 0:01:09]} 27...
gxh6 {[%clk 0:00:47.5]} 28. Qxd3 {[%clk 0:01:08.9]} 1-0